fUST/lending_fUST_20250911
["ID","MTS","AMOUNT","RATE_DAILY","PERIOD"]
[384830192,1757577048521,-480.0,0.00013698,2]
[384830193,1757577048530,-480.0,0.00013698,2]
[384830194,1757577048540,-480.0,0.00013698,2]
[384830195,1757577048549,-446.56145425,0.00013698,2]
[384830196,1757577048559,-480.0,0.00013698,2]
[384830197,1757577048568,-480.0,0.00013698,2]
[384830198,1757577048577,-480.0,0.00013698,2]
[384830199,1757577048586,-480.0,0.00013698,2]
[384830200,1757577048596,-480.0,0.00013698,2]
[384830201,1757577048605,-480.0,0.00013698,2]
[384830202,1757577048615,-480.0,0.00013698,2]
[384830203,1757577048625,-480.0,0.00013698,2]
[384830204,1757577048634,-480.0,0.00013698,2]
[384830205,1757577048643,-481.52274475,0.00013698,2]
[384830206,1757577048652,-480.0,0.00013698,2]
[384830207,1757577048661,-480.0,0.00013698,2]
[384830208,1757577048670,-480.0,0.00013698,2]
[384830209,1757577048679,-483.63198522,0.00013698,2]
[384830210,1757577048688,-480.0,0.00013698,2]
[384830211,1757577048698,-480.0,0.00013698,2]
[384830212,1757577048707,-480.0,0.00013698,2]
[384830213,1757577048716,-480.0,0.00013698,2]
[384830214,1757577048726,-480.0,0.00013698,2]
[384830215,1757577048736,-480.0,0.00013698,2]
[384830216,1757577048745,-480.0,0.00013698,2]
[384830217,1757577048755,-480.0,0.00013698,2]
[384830218,1757577048765,-480.0,0.00013698,2]
[384830219,1757577048775,-480.0,0.00013698,2]
[384830220,1757577048784,-480.0,0.00013698,2]
[384830221,1757577048795,-480.0,0.00013698,2]
[384830222,1757577048805,-480.0,0.00013698,2]
[384830223,1757577048815,-480.0,0.00013698,2]
[384830224,1757577048824,-480.0,0.00013698,2]
[384830225,1757577048834,-480.0,0.00013698,2]
[384830226,1757577048843,-480.0,0.00013698,2]
[384830227,1757577048853,-480.0,0.00013698,2]
[384830228,1757577048863,-480.0,0.00013698,2]
[384830229,1757577048872,-393.25602896,0.00013698,2]
[384830230,1757577048882,-480.0,0.00013698,2]
[384830231,1757577048892,-480.0,0.00013698,2]
[384830232,1757577048902,-483.21816347,0.00013698,2]
[384830233,1757577048912,-480.0,0.00013698,2]
[384830234,1757577048921,-480.0,0.00013698,2]
[384830235,1757577048931,-480.0,0.00013698,2]
[384830236,1757577048940,-480.0,0.00013698,2]
[384830237,1757577048950,-480.0,0.00013698,2]
[384830238,1757577048959,-480.0,0.00013698,2]
[384830239,1757577048969,-480.0,0.00013698,2]
[384830240,1757577048978,-480.0,0.00013698,2]
[384830241,1757577048988,-480.0,0.00013698,2]
[384830242,1757577048997,-480.0,0.00013698,2]
[384830243,1757577049007,-480.0,0.00013698,2]
[384830244,1757577049017,-480.0,0.00013698,2]
[384830245,1757577049026,-485.0073536,0.00013698,2]
[384830246,1757577049035,-480.0,0.00013698,2]
[384830247,1757577049047,-484.44637025,0.00013698,2]
[384830248,1757577049057,-480.0,0.00013698,2]
[384830249,1757577049067,-480.0,0.00013698,2]
[384830250,1757577049076,-480.0,0.00013698,2]
[384830251,1757577049086,-480.0,0.00013698,2]
[384830252,1757577049096,-480.0,0.00013698,2]
[384830253,1757577049107,-481.62868839,0.00013698,2]
[384830254,1757577049117,-482.88578667,0.00013698,2]
[384830255,1757577049127,-480.0,0.00013698,2]
[384830256,1757577049137,-542.9682131,0.00013698,2]
[384830257,1757577049147,-480.0,0.00013698,2]
[384830258,1757577049157,-1391.14,0.00013698,2]
[384830259,1757577049166,-480.0,0.00013698,2]
[384830260,1757577049175,-480.0,0.00013698,2]
[384830261,1757577049185,-480.0,0.00013698,2]
[384830262,1757577049194,-483.78707133,0.00013698,2]
[384830263,1757577049204,-480.0,0.00013698,2]
[384830264,1757577049213,-480.0,0.00013698,2]
[384830265,1757577049223,-480.0,0.00013698,2]
[384830266,1757577049232,-480.0,0.00013698,2]
[384830267,1757577049241,-480.0,0.00013698,2]
[384830268,1757577049251,-283.73591756,0.00013698,2]
[384830269,1757577049260,-480.0,0.00013698,2]
[384830270,1757577049396,-480.0,0.00013698,2]
[384830271,1757577049406,-480.0,0.00013698,2]
[384830272,1757577049416,-480.0,0.00013698,2]
[384830273,1757577049425,-480.0,0.00013698,2]
[384830274,1757577049435,-480.0,0.00013698,2]
[384830275,1757577049444,-480.0,0.00013698,2]
[384830276,1757577049453,-481.30380213,0.00013698,2]
[384830277,1757577049463,-480.0,0.00013698,2]
[384830278,1757577049472,-482.47732258,0.00013698,2]
[384830279,1757577049481,-480.0,0.00013698,2]
[384830280,1757577049490,-480.0,0.00013698,2]
[384830281,1757577049500,-480.0,0.00013698,2]
[384830282,1757577049509,-480.0,0.00013698,2]
[384830283,1757577049519,-480.0,0.00013698,2]
[384830284,1757577049529,-480.0,0.00013698,2]
[384830285,1757577049538,-480.0,0.00013698,2]
[384830286,1757577049547,-480.0,0.00013698,2]
[384830287,1757577049557,-480.0,0.00013698,2]
[384830288,1757577049567,-480.0,0.00013698,2]
[384830289,1757577049577,-480.0,0.00013698,2]
[384830290,1757577049586,-480.0,0.00013698,2]
[384830291,1757577049596,-480.0,0.00013698,2]
[384830292,1757577049605,-480.0,0.00013698,2]
[384830293,1757577049615,-480.0,0.00013698,2]
[384830294,1757577049624,-480.0,0.00013698,2]
[384830295,1757577049634,-480.0,0.00013698,2]
[384830296,1757577049643,-480.0,0.00013698,2]
[384830297,1757577049653,-480.0,0.00013698,2]
[384830298,1757577049662,-480.0,0.00013698,2]
[384830299,1757577049671,-500.0,0.00013698,2]
[384830300,1757577049680,-500.0,0.00013698,2]
[384830301,1757577049689,-500.0,0.00013698,2]
[384830302,1757577049699,-591.63301921,0.00013698,2]
[384830303,1757577049707,-480.51421333,0.00013698,2]
[384830304,1757577049716,-482.25436517,0.00013698,2]
[384830305,1757577049726,-480.0,0.00013698,2]
[384830306,1757577049734,-480.0,0.00013698,2]
[384830307,1757577049743,-480.0,0.00013698,2]
[384830308,1757577049752,-480.0,0.00013698,2]
[384830309,1757577049762,-482.51143571,0.00013698,2]
[384830310,1757577049771,-572.37692335,0.00013698,2]
[384830311,1757577049780,-480.0,0.00013698,2]
[384830312,1757577049790,-480.0,0.00013698,2]
[384830313,1757577049799,-480.0,0.00013698,2]
[384830314,1757577049808,-480.0,0.00013698,2]
[384830315,1757577049817,-191.88210211,0.00013698,2]
[384830316,1757577049826,-480.0,0.00013698,2]
[384830317,1757577049836,-480.0,0.00013698,2]
[384830318,1757577049845,-480.0,0.00013698,2]
[384830319,1757577049854,-480.0,0.00013698,2]
[384830320,1757577049863,-481.09741252,0.00013698,2]
[384830321,1757577049872,-480.0,0.00013698,2]
[384830322,1757577049882,-480.0,0.00013698,2]
[384830323,1757577049893,-380.14300582,0.00013698,2]
[384830324,1757577049902,-480.0,0.00013698,2]
[384830325,1757577049912,-480.0,0.00013698,2]
[384830326,1757577049922,-480.0,0.00013698,2]
[384830327,1757577049931,-485.29225515,0.00013698,2]
[384830328,1757577049940,-461.73907833,0.00013698,2]
[384830329,1757577049949,-480.0,0.00013698,2]
[384830330,1757577049958,-480.0,0.00013698,2]
[384830331,1757577049968,-607.61,0.00013698,2]
[384830332,1757577049977,-480.0,0.00013698,2]
[384830333,1757577049986,-480.7552505,0.00013698,2]
[384830334,1757577049996,-480.0,0.00013698,2]
[384830335,1757577050005,-480.0,0.00013698,2]
[384830336,1757577050014,-480.0,0.00013698,2]
[384830337,1757577050023,-481.23372867,0.00013698,2]
[384830338,1757577050033,-480.0,0.00013698,2]
[384830339,1757577050043,-480.0,0.00013698,2]
[384830340,1757577050056,-480.0,0.00013698,2]
[384830341,1757577050065,-481.72598321,0.00013698,2]
[384830342,1757577050077,-480.0,0.00013698,2]
[384830343,1757577050087,-482.65580457,0.00013698,2]
[384830344,1757577050097,-480.0,0.00013698,2]
[384830345,1757577050106,-480.0,0.00013698,2]
[384830346,1757577050116,-481.24763182,0.00013698,2]
[384830347,1757577050126,-481.30396387,0.00013698,2]
[384830348,1757577050135,-482.3291135,0.00013698,2]
[384830349,1757577050145,-498.611848,0.00013698,2]
[384830350,1757577050154,-485.85911304,0.00013698,2]
[384830351,1757577050163,-480.0,0.00013698,2]
[384830352,1757577050173,-480.0,0.00013698,2]
[384830353,1757577050182,-395.66,0.00013698,2]
[384830354,1757577050191,-480.0,0.00013698,2]
[384830355,1757577050201,-480.0,0.00013698,2]
[384830356,1757577050210,-480.0,0.00013698,2]
[384830357,1757577050220,-1661.29,0.00013698,2]
[384830358,1757577050229,-480.31100443,0.00013698,2]
[384830359,1757577050238,-480.0,0.00013698,2]
[384830360,1757577050248,-480.0,0.00013698,2]
[384830361,1757577050257,-480.0,0.00013698,2]
[384830362,1757577050265,-489.88767844,0.00013698,2]
[384830363,1757577050274,-480.0,0.00013698,2]
[384830364,1757577050283,-480.0,0.00013698,2]
[384830365,1757577050292,-480.0,0.00013698,2]
[384830366,1757577050302,-500.0,0.00013698,2]
[384830367,1757577050311,-500.0,0.00013698,2]
[384830368,1757577050320,-500.0,0.00013698,2]
[384830369,1757577050330,-480.0,0.00013698,2]
[384830370,1757577050339,-315.97289169,0.00013698,2]
[384830371,1757577050348,-1187.93,0.00013698,2]
[384830372,1757577050357,-485.95511644,0.00013698,2]
[384830373,1757577050366,-480.0,0.00013698,2]
[384830374,1757577050376,-480.0,0.00013698,2]
[384830375,1757577050385,-480.0,0.00013698,2]
[384830376,1757577050394,-481.00096817,0.00013698,2]
[384830377,1757577050402,-480.65831597,0.00013698,2]
[384830378,1757577050411,-480.0,0.00013698,2]
[384830379,1757577050420,-480.0,0.00013698,2]
[384830380,1757577050430,-480.0,0.00013698,2]
[384830381,1757577050439,-480.0,0.00013698,2]
[384830382,1757577050448,-480.0,0.00013698,2]
[384830383,1757577050457,-357.33783804,0.00013698,2]
[384830384,1757577050466,-500.0,0.00013698,2]
[384830385,1757577050475,-265.60732,0.00013699,2]
[384830386,1757577050485,-237.4687686,0.00013699,2]
[384830387,1757577050494,-500.0,0.00013773,2]
[384830388,1757577050504,-500.0,0.00013773,2]
[384830389,1757577050513,-105928.84683422,0.00013773,2]
[384830390,1757577050522,-151.0,0.00013773,2]
[384830391,1757577050531,-151.0,0.00013773,2]
[384830392,1757577050540,-151.0,0.00013773,2]
[384830393,1757577050549,-151.0,0.00013773,2]
[384830394,1757577050559,-151.0,0.00013773,2]
[384830395,1757577050568,-382.927817,0.00013773,2]
[384830396,1757577050577,-382.927817,0.00013773,2]
[384830397,1757577050587,-151.0,0.00013773,2]
[384830398,1757577050597,-382.927817,0.00013773,2]
[384830399,1757577050607,-382.927817,0.00013773,2]
[384830400,1757577050616,-168.593711,0.00013773,2]
[384830401,1757577050625,-151.0,0.00013773,2]
[384830402,1757577050634,-168.593711,0.00013773,2]
[384830403,1757577050643,-151.0,0.00013773,2]
[384830404,1757577050653,-168.593711,0.00013773,2]
[384830405,1757577050662,-168.593711,0.00013773,2]
[384830406,1757577050672,-151.0,0.00013773,2]
[384830407,1757577050681,-151.0,0.00013773,2]
[384830408,1757577050690,-151.0,0.00013773,2]
[384830409,1757577050700,-151.0,0.00013773,2]
[384830410,1757577050709,-151.0,0.00013773,2]
[384830411,1757577050718,-151.0,0.00013773,2]
[384830412,1757577050727,-509.210313,0.00013773,2]
[384830413,1757577050737,-151.0,0.00013773,2]
[384830414,1757577050746,-509.210313,0.00013773,2]
[384830415,1757577050756,-509.210313,0.00013773,2]
[384830416,1757577050766,-509.210313,0.00013773,2]
[384830417,1757577050775,-151.0,0.00013773,2]
[384830418,1757577050784,-246.621859,0.00013773,2]
[384830419,1757577050794,-151.0,0.00013773,2]
[384830420,1757577050803,-236.298328,0.00013773,2]
[384830421,1757577050812,-151.369575,0.00013773,2]
[384830422,1757577050822,-151.0,0.00013773,2]
[384830423,1757577050835,-151.0,0.00013773,2]
[384830424,1757577050846,-151.0,0.00013773,2]
[384830425,1757577050855,-151.0,0.00013773,2]
[384830426,1757577050867,-151.0,0.00013773,2]
[384830427,1757577050878,-151.0,0.00013773,2]
[384830428,1757577050888,-151.0,0.00013773,2]
[384830429,1757577050898,-151.0,0.00013773,2]
[384830430,1757577050907,-151.0,0.00013773,2]
[384830431,1757577050917,-151.0,0.00013773,2]
[384830432,1757577050927,-151.0,0.00013773,2]
[384830433,1757577050936,-151.0,0.00013773,2]
[384830434,1757577050945,-151.0,0.00013773,2]
[384830435,1757577050954,-151.0,0.00013773,2]
[384830436,1757577050964,-151.0,0.00013773,2]
[384830437,1757577050973,-151.0,0.00013773,2]
[384830438,1757577050982,-169.725404,0.00013773,2]
[384830439,1757577050991,-169.725404,0.00013773,2]
[384830440,1757577051001,-169.725404,0.00013773,2]
[384830441,1757577051011,-353.647014,0.00013773,2]
[384830442,1757577051020,-169.725404,0.00013773,2]
[384830443,1757577051032,-353.647014,0.00013773,2]
[384830444,1757577051042,-353.647014,0.00013773,2]
[384830445,1757577051054,-353.647014,0.00013773,2]
[384830446,1757577051063,-151.0,0.00013773,2]
[384830447,1757577051073,-151.0,0.00013773,2]
[384830448,1757577051085,-417.562533,0.00013773,2]
[384830449,1757577051094,-417.562533,0.00013773,2]
[384830450,1757577051103,-417.562533,0.00013773,2]
[384830451,1757577051113,-417.562533,0.00013773,2]
[384830452,1757577051122,-151.0,0.00013773,2]
[384830453,1757577051131,-151.0,0.00013773,2]
[384830454,1757577051141,-151.0,0.00013773,2]
[384830455,1757577051150,-151.0,0.00013773,2]
[384830456,1757577051159,-151.0,0.00013773,2]
[384830457,1757577051169,-151.0,0.00013773,2]
[384830458,1757577051179,-151.0,0.00013773,2]
[384830459,1757577051188,-151.0,0.00013773,2]
[384830460,1757577051197,-151.0,0.00013773,2]
[384830461,1757577051207,-151.0,0.00013773,2]
[384830462,1757577051215,-151.0,0.00013773,2]
[384830463,1757577051225,-151.0,0.00013773,2]
[384830464,1757577051235,-151.0,0.00013773,2]
[384830465,1757577051244,-151.0,0.00013773,2]
[384830466,1757577051253,-152.152047,0.00013773,2]
[384830467,1757577051263,-151.0,0.00013773,2]
[384830468,1757577051272,-151.0,0.00013773,2]
[384830469,1757577051281,-279.940189,0.00013773,2]
[384830470,1757577051290,-279.940189,0.00013773,2]
[384830471,1757577051299,-279.940189,0.00013773,2]
[384830472,1757577051309,-151.0,0.00013773,2]
[384830473,1757577051318,-279.940189,0.00013773,2]
[384830474,1757577051329,-151.0,0.00013773,2]
[384830475,1757577051339,-151.0,0.00013773,2]
[384830476,1757577051348,-151.0,0.00013773,2]
[384830477,1757577051358,-151.0,0.00013773,2]
[384830478,1757577051465,-286.070632,0.00013773,2]
[384830479,1757577051475,-151.0,0.00013773,2]
[384830480,1757577051485,-286.070632,0.00013773,2]
[384830481,1757577051495,-151.0,0.00013773,2]
[384830482,1757577051504,-151.0,0.00013773,2]
[384830483,1757577051514,-286.070632,0.00013773,2]
[384830484,1757577051523,-151.0,0.00013773,2]
[384830485,1757577051532,-151.0,0.00013773,2]
[384830486,1757577051542,-286.070632,0.00013773,2]
[384830487,1757577051552,-151.0,0.00013773,2]
[384830488,1757577051561,-151.0,0.00013773,2]
[384830489,1757577051571,-151.0,0.00013773,2]
[384830490,1757577051581,-151.0,0.00013773,2]
[384830491,1757577051591,-151.0,0.00013773,2]
[384830492,1757577051600,-9822.75698588,0.00013873,2]
[384830493,1757577051622,-5750.0,0.00013873,2]
[384830494,1757577051634,-2500.0,0.00013873,2]
[384830495,1757577051647,-472.95933375,0.00013873,2]
[384830496,1757577051665,-688.85120891,0.00013873,2]
[384830994,1757577095576,-168.0,0.0001356,2]
[384830995,1757577095758,-9664.01,0.00013697,2]
[384830996,1757577095918,-10000.01,0.00013697,2]
[384830997,1757577096216,-10000.01,0.00013697,2]
[384831001,1757577096567,-10000.01,0.00013697,2]
[384831004,1757577135734,-1665.06451756,0.00013598,2]
[384831005,1757577135838,-300.0,0.00013696,2]
[384831006,1757577135941,-1200.0,0.00013696,2]
[384831007,1757577136050,-1755.46256458,0.00013697,2]
[384831008,1757577136550,-158.95583572,0.00013697,2]
[384831009,1757577154069,999.0,0.00013287,7]
[384831010,1757577245823,-2163.5418856,0.00013598,2]
[384831011,1757577245920,-5672.9262288,0.00013598,2]
[384831012,1757577275865,-270.41690734,0.0001356,2]
[384831013,1757577275971,-9459.17618532,0.0001356,2]
[384831014,1757577285881,-341.04416428,0.00013697,2]
[384831015,1757577285970,-500.0,0.00013697,2]
[384831016,1757577286054,-500.0,0.00013697,2]
[384831017,1757577286137,-500.0,0.00013697,2]
[384831018,1757577286218,-500.0,0.00013697,2]
[384831019,1757577286296,-500.0,0.00013697,2]
[384831020,1757577286382,-500.0,0.00013697,2]
[384831021,1757577286467,-152.69912574,0.00013697,2]
[384831022,1757577286549,-500.0,0.00013697,2]
[384831023,1757577286631,-500.0,0.00013697,2]
[384831024,1757577286707,-500.0,0.00013697,2]
[384831025,1757577287607,-12.52341996,0.00013697,2]
[384831026,1757577306004,-4723.32638268,0.0001356,2]
[384831027,1757577306215,-553.35723464,0.00013696,2]
[384831028,1757577384423,180.96053379,0.0002739,120]
[384831033,1757577406026,-646.64276536,0.00013559,2]
[384831034,1757577406212,-8706.72446928,0.00013598,2]
[384831035,1757577406328,-1248.86808526,0.00013598,2]
[384831036,1757577406412,-7502.27382948,0.00013598,2]
[384831040,1757577703572,291.375192,0.00024,30]
[384831041,1757577705471,291.375192,0.00018948,20]
[384831066,1757577791701,646.64276536,0.00013289,2]
[384831068,1757577945312,383.78,0.00027397,120]
[384831069,1757578011142,5000.0,0.00017,7]
[384831072,1757578077208,9353.36723464,0.00012698,2]
[384831073,1757578077286,10000.01,0.00012698,2]
[384831074,1757578077371,10000.01,0.00012698,2]
[384831075,1757578077449,10000.01,0.00012698,2]
[384831076,1757578077529,10000.01,0.00012698,2]
[384831077,1757578077613,10000.01,0.00012698,2]
[384831078,1757578077692,10000.01,0.00012698,2]
[384831079,1757578077777,10000.01,0.00012698,2]
[384831080,1757578077859,10000.01,0.00012698,2]
[384831081,1757578077950,10000.01,0.00012698,2]
[384831082,1757578077981,351426.99249646,0.00012698,2]
[384831084,1757578148615,-646.0,0.00013559,2]
[384831085,1757578148704,-300.0,0.00013685,2]
[384831086,1757578168640,-322.732851,0.00013549,2]
[384831087,1757578178573,-645.465702,0.00013549,2]
[384831088,1757578208707,-1200.0,0.00013548,2]
[384831089,1757578228722,-1290.931404,0.00013549,2]
[384831138,1757578232894,-429.06873695,0.00013549,2]
[384831140,1757578232906,-6989.07845505,0.00013549,2]
[384831142,1757578232918,-331.45670936,0.00013597,2]
[384831156,1757578233047,-300.0,0.00013685,2]
[384831158,1757578233057,-300.0,0.00013685,2]
[384831160,1757578233067,-9677.277149,0.00013686,2]
[384831162,1757578233076,-4296.63252494,0.00013697,2]
[384831164,1757578233087,-1501.0,0.00013697,2]
[384831167,1757578233106,-430.35540383,0.00013696,2]
[384831169,1757578233116,-44202.36747506,0.00013697,2]
[384831171,1757578233125,-218.4761428,0.00013697,2]
[384831173,1757578233135,-500.0,0.00013697,2]
[384831175,1757578233144,-189.83362017,0.00013697,2]
[384831177,1757578233154,-535.52135274,0.00013697,2]
[384831179,1757578233164,-500.0,0.00013697,2]
[384831181,1757578233174,-539.56228516,0.00013697,2]
[384831183,1757578233184,-589.62777735,0.00013697,2]
[384831185,1757578233194,-42.74877489,0.00013697,2]
[384831219,1757578238758,-193.17088297,0.00013696,2]
[384831221,1757578238768,-170.108,0.00013697,2]
[384831222,1757578238778,-480.0,0.00013698,2]
[384831223,1757578238790,-480.0,0.00013698,2]
[384831224,1757578238799,-565.75972224,0.00013698,2]
[384831225,1757578238808,-480.0,0.00013698,2]
[384831226,1757578238818,-480.0,0.00013698,2]
[384831227,1757578238827,-480.0,0.00013698,2]
[384831228,1757578238836,-500.0,0.00013698,2]
[384831229,1757578238845,-500.0,0.00013698,2]
[384831230,1757578238854,-500.0,0.00013698,2]
[384831231,1757578238866,-500.0,0.00013698,2]
[384831232,1757578238876,-500.0,0.00013698,2]
[384831233,1757578238885,-160.07298367,0.00013698,2]
[384831234,1757578238896,-268.61921822,0.00013698,2]
[384831235,1757578238908,-71.30779811,0.00013698,2]
[384831236,1757578238917,-500.0,0.00013698,2]
[384831237,1757578238926,-500.0,0.00013698,2]
[384831238,1757578238935,-500.0,0.00013698,2]
[384831239,1757578238945,-500.0,0.00013698,2]
[384831240,1757578238954,-500.0,0.00013698,2]
[384831241,1757578238963,-480.0,0.00013698,2]
[384831242,1757578238973,-480.0,0.00013698,2]
[384831243,1757578238982,-480.0,0.00013698,2]
[384831244,1757578238992,-480.0,0.00013698,2]
[384831245,1757578239001,-480.0,0.00013698,2]
[384831246,1757578239010,-480.0,0.00013698,2]
[384831247,1757578239019,-480.0,0.00013698,2]
[384831248,1757578239028,-480.0,0.00013698,2]
[384831249,1757578239039,-167.78261816,0.00013698,2]
[384831290,1757578244099,-500.0,0.00013696,2]
[384831291,1757578244118,-500.0,0.00013696,2]
[384831292,1757578244128,-213.98440886,0.00013696,2]
[384831293,1757578244138,-500.0,0.00013696,2]
[384831294,1757578244147,-500.0,0.00013696,2]
[384831295,1757578244157,-500.0,0.00013696,2]
[384831296,1757578244167,-388.66922314,0.00013696,2]
[384831297,1757578245391,268.065176,0.00024,30]
[384831300,1757578246866,-111.33077686,0.00013696,2]
[384831301,1757578246876,-276.46682775,0.00013696,2]
[384831302,1757578246885,-500.0,0.00013696,2]
[384831303,1757578246896,-500.0,0.00013696,2]
[384831304,1757578246906,-500.0,0.00013696,2]
[384831305,1757578246915,-500.0,0.00013696,2]
[384831306,1757578246924,-152.08980073,0.00013696,2]
[384831307,1757578246933,-500.0,0.00013696,2]
[384831308,1757578246944,-500.0,0.00013696,2]
[384831309,1757578246953,-500.0,0.00013696,2]
[384831310,1757578246962,-500.0,0.00013696,2]
[384831311,1757578246972,-500.0,0.00013696,2]
[384831312,1757578246981,-465.43512623,0.00013696,2]
[384831313,1757578246990,-500.0,0.00013696,2]
[384831314,1757578246999,-456.44587426,0.00013696,2]
[384831315,1757578247010,-43.55412574,0.00013696,2]
[384831316,1757578247019,-500.0,0.00013696,2]
[384831317,1757578247028,-500.0,0.00013696,2]
[384831318,1757578247036,-500.0,0.00013696,2]
[384831319,1757578247045,-309.27033341,0.00013696,2]
[384831320,1757578247054,-500.0,0.00013696,2]
[384831321,1757578247063,-500.0,0.00013696,2]
[384831322,1757578247073,-500.0,0.00013696,2]
[384831323,1757578247083,-500.0,0.00013696,2]
[384831324,1757578247092,-500.0,0.00013696,2]
[384831325,1757578247101,-500.0,0.00013696,2]
[384831326,1757578247110,-500.0,0.00013696,2]
[384831327,1757578247120,-500.0,0.00013696,2]
[384831328,1757578247129,-500.0,0.00013696,2]
[384831329,1757578247138,-500.0,0.00013696,2]
[384831330,1757578247147,-500.0,0.00013696,2]
[384831331,1757578247157,-500.0,0.00013696,2]
[384831332,1757578247167,-500.0,0.00013696,2]
[384831334,1757578247177,-500.0,0.00013696,2]
[384831336,1757578247187,-500.0,0.00013696,2]
[384831338,1757578247196,-500.0,0.00013696,2]
[384831339,1757578247205,-500.0,0.00013696,2]
[384831340,1757578247214,-500.0,0.00013696,2]
[384831341,1757578247224,-500.0,0.00013696,2]
[384831342,1757578247233,-500.0,0.00013696,2]
[384831343,1757578247242,-500.0,0.00013696,2]
[384831344,1757578247252,-100.86748755,0.00013698,2]
[384831345,1757578247261,-480.0,0.00013698,2]
[384831346,1757578247270,-484.68213745,0.00013698,2]
[384831347,1757578247279,-480.0,0.00013698,2]
[384831348,1757578247289,-488.8695104,0.00013698,2]
[384831349,1757578247298,-485.30595372,0.00013698,2]
[384831350,1757578247306,-480.0,0.00013698,2]
[384831351,1757578247315,-480.0,0.00013698,2]
[384831352,1757578247325,-480.0,0.00013698,2]
[384831353,1757578247334,-480.0,0.00013698,2]
[384831354,1757578247343,-480.0,0.00013698,2]
[384831355,1757578247352,-480.0,0.00013698,2]
[384831356,1757578247361,-480.0,0.00013698,2]
[384831357,1757578247370,-480.0,0.00013698,2]
[384831358,1757578247379,-480.0,0.00013698,2]
[384831359,1757578247390,-480.0,0.00013698,2]
[384831360,1757578247399,-223.87753867,0.00013698,2]
[384831361,1757578247409,-480.0,0.00013698,2]
[384831362,1757578247418,-486.58002458,0.00013698,2]
[384831363,1757578247427,-480.0,0.00013698,2]
[384831364,1757578247436,-480.0,0.00013698,2]
[384831365,1757578247446,-480.0,0.00013698,2]
[384831366,1757578247455,-480.0,0.00013698,2]
[384831367,1757578247464,-480.0,0.00013698,2]
[384831368,1757578247473,-480.0,0.00013698,2]
[384831369,1757578247482,-480.0,0.00013698,2]
[384831370,1757578247491,-481.62984046,0.00013698,2]
[384831371,1757578247500,-480.0,0.00013698,2]
[384831372,1757578247509,-480.0,0.00013698,2]
[384831373,1757578247518,-487.99945232,0.00013698,2]
[384831374,1757578247527,-480.0,0.00013698,2]
[384831375,1757578247536,-480.0,0.00013698,2]
[384831376,1757578247545,-480.0,0.00013698,2]
[384831377,1757578247556,-480.0,0.00013698,2]
[384831378,1757578247565,-480.0,0.00013698,2]
[384831379,1757578247574,-480.0,0.00013698,2]
[384831380,1757578247583,-485.32724645,0.00013698,2]
[384831381,1757578247592,-176.69353289,0.00013698,2]
[384831382,1757578247601,-480.0,0.00013698,2]
[384831383,1757578247611,-485.11448873,0.00013698,2]
[384831384,1757578247620,-480.0,0.00013698,2]
[384831385,1757578247633,-480.0,0.00013698,2]